bitfinex/quotes_ETHUSD_20250814
["timestamp","ask_amount","ask_price","bid_price","bid_amount"]
[1755181368371,0.55,4619.2,4619.0,3.683]
[1755181368700,0.55,4619.1,4617.5,0.4724]
[1755181368911,2.16496925,4619.1,4618.2,2.16533101]
[1755181369066,0.55,4618.7,4617.8,2.16550657]
[1755181369265,2.71515666,4618.7,4617.9,3.682]
[1755181369469,0.55,4618.7,4617.4,2.16571339]
[1755181369698,0.55,4617.9,4617.3,4.758]
[1755181370001,0.55,4618.4,4617.5,3.682]
[1755181370177,2.71527118,4618.4,4617.5,3.682]
[1755181370507,0.55,4618.0,4617.5,3.682]
[1755181370805,0.55,4618.3,4617.6,3.682]
[1755181370970,0.55,4618.0,4617.3,4.758]
[1755181371168,2.1652654,4618.4,4617.7,3.682]
[1755181371367,3.0,4618.6,4617.7,3.682]
[1755181371368,0.55,4618.3,4617.7,3.682]
[1755181371591,0.108,4618.0,4617.9,2.16544398]
[1755181372267,5.71514204,4618.7,4617.9,1.0423]
[1755181372509,0.108,4618.3,4617.9,1.0423]
[1755181372724,0.108,4618.3,4617.9,2.63788125]
[1755181373029,0.108,4618.9,4618.2,0.108]
[1755181373198,2.16458739,4619.9,4619.0,2.16495793]
[1755181373400,0.108,4619.2,4618.6,0.108]
[1755181373594,0.108,4619.2,4619.1,3.682]
[1755181373787,0.658,4619.2,4618.6,2.1651506]
[1755181374122,0.55,4619.2,4618.0,2.16543958]
[1755181374324,0.108,4618.7,4618.4,2.1652468]
[1755181374525,0.20061604,4618.6,4618.2,2.1653458]
[1755181374829,0.20061604,4618.5,4618.1,0.108]
[1755181374988,0.20061604,4618.4,4618.2,3.681]
[1755181375205,0.30861604,4618.3,4618.2,3.681]
[1755181375407,0.30861604,4618.3,4618.2,5.8463458]
[1755181375807,0.30861604,4618.3,4618.2,3.681]
[1755181376041,0.20061604,4618.3,4618.2,5.8463458]
[1755181376353,0.20061604,4618.3,4618.2,7.4513458]
[1755181376521,0.20061604,4618.3,4618.2,3.7703458]
[1755181376727,0.20061604,4618.3,4618.2,5.9543458]
[1755181377150,0.20061604,4618.3,4618.2,3.3156458]
[1755181377322,0.20061604,4618.3,4618.2,7.999532]
[1755181377849,0.20061604,4618.3,4618.2,7.544832]
[1755181378053,0.75061604,4618.3,4618.2,3.681]
[1755181378420,0.55,4618.2,4617.9,0.0008]
[1755181378616,0.20061604,4618.1,4618.0,3.681]
[1755181379217,0.20061604,4618.1,4618.0,5.84643958]
[1755181379532,0.20061604,4618.1,4618.0,6.88873958]
[1755181379728,0.20061604,4618.1,4618.0,2.16543958]
[1755181379924,0.20061604,4618.1,4618.0,5.84543958]
[1755181380260,0.20061604,4618.1,4618.0,6.88773958]
[1755181380561,0.20061604,4618.1,4618.0,7.34243958]
[1755181380722,1e-08,4618.1,4618.0,10.34243958]
[1755181380918,7.9410095,4620.0,4618.1,3.0]
[1755181381157,0.02705686,4619.9,4619.2,2.16487153]
[1755181381366,0.02705686,4619.9,4619.3,3.68]
[1755181381532,0.02705686,4619.9,4619.3,5.8448297]
[1755181381734,10.10551911,4620.0,4618.3,0.4547]
[1755181381933,10.10551911,4620.0,4618.5,1.0423]
[1755181382138,7.9410095,4620.0,4619.3,2.16482219]
[1755181382461,0.57705686,4619.9,4619.4,3.68]
[1755181382766,0.55,4619.7,4619.4,3.68]
[1755181382972,0.55,4619.7,4619.4,3.6808]
[1755181383471,2.71473644,4619.5,4619.4,0.0008]
[1755181383656,1.0055,4619.5,4619.4,0.0008]
[1755181383865,3.17023644,4619.5,4619.4,3.6808]
[1755181384057,1.0055,4619.5,4619.4,3.6808]
[1755181384374,0.55,4619.9,4619.4,3.6808]
[1755181384535,7.9410095,4620.0,4619.5,0.01066761]
[1755181384736,7.29759739,4619.0,4618.9,2.16500609]
[1755181384940,7.29759739,4619.0,4618.9,3.09818545]
[1755181385247,7.29759739,4619.0,4617.5,3.0]
[1755181385448,7.29759739,4619.0,4618.0,1.497]
[1755181385646,7.29759739,4619.0,4617.5,1.0423]
[1755181385853,7.29759739,4619.0,4618.4,2.16524979]
[1755181386053,7.29759739,4619.0,4618.7,2.16506973]
[1755181386250,7.29759739,4619.0,4618.4,2.16521581]
[1755181386468,7.29759739,4619.0,4618.5,3.679]
[1755181386662,7.29759739,4619.0,4618.9,2.16501764]
[1755181386864,7.29759739,4619.0,4618.8,2.16502375]
[1755181387178,0.6319445,4620.0,4619.9,2.16454901]
[1755181387357,0.6319445,4620.0,4619.9,12.09854901]
[1755181387553,0.6319445,4620.0,4619.9,6.92254901]
[1755181387758,0.6319445,4620.0,4619.9,10.60154901]
[1755181387971,0.6319445,4620.0,4619.9,6.92254901]
[1755181388285,0.6319445,4620.0,4619.9,13.00726753]
[1755181388587,0.6319445,4620.0,4619.9,10.60054901]
[1755181388889,0.6319445,4620.0,4619.9,2.16454901]
[1755181389185,2.16488718,4619.2,4618.0,2.16543096]
[1755181389357,0.57706154,4619.1,4618.1,3.678]
[1755181389557,0.108,4618.4,4618.2,2.1653458]
[1755181389759,0.55,4619.3,4618.8,2.16503443]
[1755181390075,0.108,4618.8,4618.6,0.001]
[1755181390379,0.108,4618.8,4618.7,5.84311139]
[1755181390582,0.108,4618.8,4618.7,3.678]
[1755181390779,0.108,4618.8,4618.6,2.16611613]
[1755181390990,0.108,4618.8,4618.7,3.678]
[1755181391161,0.55,4618.7,4618.6,0.001]
[1755181391349,1.11685,4618.7,4618.6,3.678]
[1755181391681,1.11685,4618.7,4618.6,5.84315156]
[1755181391682,0.108,4618.7,4618.6,5.84315156]
[1755181391847,0.108,4619.0,4618.6,3.678]
[1755181392050,0.108,4619.8,4618.7,1.497]
[1755181392262,0.108,4619.8,4619.1,0.108]
[1755181392672,0.108,4619.8,4619.2,3.677]
[1755181392873,0.108,4619.8,4619.2,4.27199698]
[1755181393251,0.108,4619.8,4619.6,2.16465017]
[1755181393490,0.108,4619.8,4619.7,3.677]
[1755181393664,0.108,4619.8,4619.7,5.84164272]
[1755181394023,0.6319445,4620.0,4619.9,2.16454901]
[1755181394159,0.6319445,4620.0,4619.9,2.96516818]
[1755181395301,0.002,4621.6,4620.5,2.16426793]
[1755181395506,0.9714,4623.0,4620.5,2.16426793]
[1755181395507,0.4555,4624.5,4622.7,2.16323793]
[1755181395706,0.108,4623.5,4622.7,6.88253793]
[1755181395874,0.108,4623.9,4622.7,6.99053793]
[1755181396083,0.631944,4624.2,4622.7,6.88253793]
[1755181396278,0.631944,4624.2,4622.7,3.20553793]
[1755181396482,0.4555,4624.5,4622.7,6.88153793]
[1755181396882,1e-08,4622.8,4622.7,11.71652315]
[1755181397410,1e-08,4623.2,4622.9,2.16312734]
[1755181397606,1e-08,4623.2,4623.0,1.497]
[1755181397817,1e-08,4623.2,4623.1,8.173]
[1755181398202,1e-08,4623.2,4623.1,10.33605076]
[1755181398521,1e-08,4623.2,4623.1,11.58596857]
[1755181399319,1e-08,4623.2,4623.1,3.675]
[1755181399835,0.45550001,4623.2,4623.1,3.674]
[1755181399997,1e-08,4623.2,4623.1,3.674]
[1755181400319,1e-08,4623.2,4622.6,4.758]
[1755181400734,0.02703755,4623.2,4622.7,3.674]
[1755181400943,3.58995076,4623.1,4622.8,3.674]
[1755181401086,0.9714,4623.0,4622.8,3.674]
[1755181401286,0.4555,4622.9,4622.8,3.674]
[1755181401792,1e-08,4623.2,4622.8,3.674]
[1755181401991,0.46330001,4623.2,4622.8,3.674]
[1755181402217,2.0517,4623.1,4620.9,2.16404337]
[1755181402399,2.16329073,4622.6,4621.6,2.16372023]
[1755181402610,2.71324344,4622.7,4621.8,2.16365821]
[1755181402826,0.86765434,4622.7,4621.8,2.16365821]
[1755181403030,0.86765434,4622.7,4621.9,2.16359831]
[1755181403344,2.16330294,4622.6,4621.7,5.83766138]
[1755181403543,2.16330294,4622.6,4621.7,3.674]
[1755181403759,0.55,4621.9,4621.6,0.0008]
[1755181403903,2.71361236,4621.9,4621.8,3.673]
[1755181404103,6.20053081,4621.9,4621.8,3.673]
[1755181404521,7.70223081,4621.9,4621.8,3.673]
[1755181404726,7.70223081,4621.9,4621.6,0.0008]
[1755181405017,2.16370599,4621.7,4621.6,0.0008]
[1755181405215,6.66540599,4621.7,4619.0,4.756]
[1755181405436,0.59164588,4621.9,4619.0,4.756]
[1755181405437,2.03762816,4619.4,4619.1,3.673]
[1755181405619,0.4633,4620.2,4619.1,3.673]
[1755181405836,2.16463636,4619.8,4619.1,3.673]
[1755181406070,0.108,4619.6,4619.1,5.83788015]
[1755181406363,0.108,4619.6,4619.1,3.673]
[1755181407022,0.108,4619.8,4619.3,2.16478906]
[1755181407222,0.108,4619.8,4619.2,0.108]
[1755181407433,0.108,4619.8,4619.3,2.16483016]
[1755181407647,0.108,4619.8,4619.6,2.1646878]
[1755181407841,0.108,4619.8,4619.7,3.673]
[1755181408459,0.108,4619.8,4619.7,5.83764272]
[1755181408663,2.16402916,4621.1,4619.8,2.16459586]
[1755181408967,0.649246,4623.3,4620.9,3.0]
[1755181409263,0.108,4623.6,4622.9,2.16314434]
[1755181409560,0.108,4623.6,4623.0,3.673]
[1755181409734,0.108,4623.6,4623.1,2.16305076]
[1755181409934,0.108,4623.6,4623.1,5.83605076]
[1755181410629,0.108,4623.6,4623.1,6.64677027]
[1755181410829,0.108,4623.6,4623.1,2.97377027]
[1755181411024,0.108,4623.6,4623.1,5.83505076]
[1755181411825,0.108,4623.6,4623.1,2.16305076]
[1755181412035,1.0384,4624.7,4623.1,6.78785076]
[1755181412276,0.108,4624.0,4623.1,5.94305076]
[1755181412568,0.002,4623.7,4623.1,5.94305076]
[1755181412772,1.01330001,4623.2,4623.1,0.108]
[1755181412977,0.55,4623.0,4622.9,3.672]
[1755181413130,4.32279755,4623.0,4622.9,3.672]
[1755181413329,2.1597,4623.0,4622.9,3.672]
[1755181413936,1.1213,4623.0,4622.9,3.672]
[1755181414147,0.108,4623.0,4622.9,3.672]
[1755181414734,0.55,4622.9,4622.8,0.001]
[1755181414940,2.0517,4622.9,4622.8,3.672]
[1755181415132,2.48397509,4622.9,4622.8,3.672]
[1755181415465,1.44557509,4622.9,4622.8,3.672]
[1755181415773,1.0133,4622.9,4622.8,3.672]
[1755181416143,1.0133,4622.9,4622.8,0.001]
[1755181416345,7.21484434,4622.9,4622.8,3.672]
[1755181417477,1e-08,4623.2,4622.8,3.672]
[1755181418336,1e-08,4623.2,4623.0,2.16307712]
[1755181418572,1e-08,4623.2,4623.1,3.57805076]
[1755181418953,1e-08,4623.2,4623.1,4.51936355]
[1755181419464,1e-08,4623.2,4623.1,2.35631279]
[1755181419639,1e-08,4623.2,4623.1,5.83305076]
[1755181419838,1e-08,4623.2,4623.1,3.67]
[1755181420175,1e-08,4623.2,4623.1,5.83305076]
[1755181420359,1e-08,4623.2,4623.1,6.78585076]
[1755181420552,1e-08,4623.2,4623.1,5.83305076]
[1755181420857,0.46330001,4623.2,4622.8,0.001]
[1755181421183,1.0133,4623.1,4622.9,3.67]
[1755181421597,1e-08,4623.2,4622.9,3.67]
[1755181421898,1e-08,4623.2,4623.0,1.415]
[1755181422037,1e-08,4623.2,4622.9,5.83312624]
[1755181422038,1e-08,4623.2,4623.1,2.16305076]
[1755181422239,1e-08,4623.2,4623.1,3.57805076]
[1755181422537,1e-08,4623.2,4623.1,4.51926846]
[1755181422756,1e-08,4623.2,4623.1,4.05706846]
[1755181423147,1e-08,4623.2,4623.1,4.51926846]
[1755181423572,1e-08,4623.2,4623.1,3.11585076]
[1755181423953,1e-08,4623.2,4622.8,0.001]
[1755181424187,1e-08,4623.2,4622.9,3.669]
[1755181424476,1e-08,4623.2,4623.0,3.669]
[1755181424477,3.17635076,4623.1,4623.0,3.669]
[1755181424646,2.16314434,4622.9,4622.8,0.001]
[1755181424852,3.69188364,4622.9,4622.8,0.001]
[1755181425049,3.66484434,4622.9,4622.8,0.001]
[1755181425675,0.4633,4622.9,4622.8,3.67]
[1755181425835,3.17644434,4622.9,4622.8,3.67]
[1755181426340,4.21484434,4622.9,4622.8,3.67]
[1755181426643,1.0133,4622.9,4622.8,3.67]
[1755181426862,0.55,4622.9,4622.8,3.67]
[1755181427334,3.28444434,4622.9,4622.8,0.001]
[1755181427541,7.34988364,4622.9,4622.8,0.001]
[1755181427752,7.32284434,4622.9,4622.8,0.001]
[1755181428574,33.55,4622.8,4620.5,0.108]
[1755181428776,2.16483807,4619.3,4617.8,0.16107691]
[1755181429080,0.4633,4619.2,4617.9,0.103]
[1755181429235,0.55,4618.9,4618.0,3.668]
[1755181429434,0.55,4618.9,4618.1,0.3668]
[1755181429648,0.02706154,4619.1,4618.1,0.3668]
[1755181429876,3.0,4619.0,4618.1,0.3668]
[1755181430039,0.57706272,4618.9,4618.1,0.3668]
[1755181430242,0.02706272,4618.9,4618.1,0.3668]
[1755181430450,0.55,4619.0,4618.2,0.40348]
[1755181430737,0.55,4619.0,4618.0,3.668]
[1755181430738,3.55,4618.7,4618.0,3.668]
[1755181430958,0.55,4618.7,4618.0,3.668]
[1755181431160,0.55,4618.8,4618.0,3.668]
[1755181431369,0.55,4618.8,4618.1,2.16539187]
[1755181431575,0.55,4618.8,4618.0,5.83343614]
[1755181431803,0.55,4618.9,4618.1,2.74873406]
[1755181432003,0.10254609,4620.0,4618.0,3.668]
[1755181432173,5.16468864,4619.7,4618.0,4.7025]
[1755181432497,0.4586,4620.1,4618.1,0.4661]
[1755181432699,0.55,4620.0,4619.2,2.16487543]
[1755181432921,0.55,4620.0,4619.3,3.668]
[1755181434168,2.32339127,4620.6,4619.3,3.668]
[1755181434169,0.15914834,4620.6,4619.3,3.668]
[1755181434369,0.55,4620.4,4619.3,3.668]
[1755181434599,0.55,4619.5,4619.3,3.668]
[1755181434973,1.0086,4619.4,4619.3,3.668]
[1755181435174,0.55,4619.4,4619.3,3.668]
[1755181435507,3.0,4620.5,4619.4,2.1647833]
[1755181435709,3.0,4620.3,4619.3,3.668]
[1755181436008,3.0,4620.3,4619.3,5.83282843]
[1755181436308,0.57846081,4620.4,4619.4,2.16477646]
[1755181436503,0.55,4620.5,4619.3,3.668]
[1755181436705,0.55,4620.1,4619.3,5.83282625]
[1755181437107,0.55,4620.1,4619.4,2.1647645]
[1755181437310,0.16351763,4620.6,4619.3,3.668]
[1755181437526,0.4586,4620.7,4619.3,3.668]
[1755181437806,2.16426485,4620.6,4619.3,3.668]
[1755181437977,0.56228649,4620.5,4619.7,2.1646251]
[1755181438176,0.16224316,4620.6,4619.7,2.1646251]
[1755181438371,0.55,4620.6,4619.7,2.1646251]
[1755181438700,0.55,4620.6,4619.4,2.1647833]
[1755181438900,0.55,4620.6,4619.9,2.16454087]
[1755181439098,0.108,4620.3,4620.0,3.668]
[1755181439299,0.108,4620.3,4620.2,2.16440846]
[1755181439612,0.108,4620.3,4620.2,3.19890846]
[1755181439837,0.16504658,4621.5,4620.4,2.16431073]
[1755181439977,0.108,4620.7,4620.4,2.16431073]
[1755181440176,0.108,4620.7,4620.4,3.19881073]
[1755181440489,0.4586,4622.4,4620.7,2.16417425]
[1755181440693,0.108,4621.7,4621.6,2.16374369]
[1755181440889,0.45860001,4623.2,4621.6,6.86524369]
[1755181441083,1e-08,4623.2,4622.4,2.16334601]
[1755181441283,1e-08,4623.2,4622.5,3.667]
[1755181441480,1e-08,4623.2,4622.6,3.667]
[1755181441789,0.108,4622.7,4622.6,5.83028473]
[1755181442344,0.108,4622.7,4622.6,2.16328473]
[1755181442491,0.108,4622.7,4622.6,6.86478473]
[1755181442684,0.108,4622.7,4622.6,8.23369959]
[1755181442938,0.108,4622.7,4622.6,8.23449959]
[1755181443239,1e-08,4623.2,4623.1,2.16305076]
[1755181443440,1e-08,4623.2,4623.1,5.83005076]
[1755181443618,1e-08,4623.2,4622.6,0.0008]
[1755181443931,0.108,4622.9,4622.7,3.666]
[1755181444078,0.108,4622.9,4622.6,0.0008]
[1755181444280,0.108,4622.9,4622.7,3.666]
[1755181445129,0.108,4622.9,4622.8,3.665]
[1755181445834,0.10800001,4623.2,4622.8,4.6995]
[1755181446041,1e-08,4623.2,4622.9,3.66374434]
[1755181446185,0.002,4623.7,4623.4,2.16288945]
[1755181446388,1e-08,4623.9,4623.6,2.16281685]
[1755181446608,1e-08,4623.9,4623.8,2.2707233]
[1755181446810,0.10473149,4626.6,4624.2,2.1625352]
[1755181447151,0.108,4626.5,4625.8,0.108]
[1755181447295,0.108,4626.5,4626.0,2.161653]
[1755181447645,0.108,4626.5,4625.8,0.108]
[1755181447853,2.1613696,4626.7,4625.1,1.0345]
[1755181447854,0.108,4626.0,4625.9,3.664]
[1755181448141,0.108,4626.0,4624.7,0.108]
[1755181448142,0.108,4625.4,4624.7,0.108]
[1755181448353,0.55,4625.3,4624.8,3.664]
[1755181448507,0.55,4625.1,4624.9,3.664]
[1755181448688,0.108,4625.4,4624.9,3.664]
[1755181449088,0.55,4625.1,4624.1,0.108]
[1755181449331,0.108,4624.3,4624.1,3.664]
[1755181449738,1.0086,4624.2,4623.4,4.756]
[1755181449939,3.55,4624.0,4623.0,0.108]
[1755181450144,0.55,4623.0,4622.5,3.663]
[1755181450341,0.55,4623.0,4621.7,1.0345]
[1755181450342,0.4586,4622.9,4622.3,3.663]
[1755181450495,2.16337833,4622.4,4622.3,3.663]
[1755181451094,0.55,4622.4,4621.5,4.754]
[1755181451294,2.16370724,4621.7,4621.6,3.663]
[1755181451493,2.82175281,4621.6,4621.5,4.754]
[1755181451822,2.82175281,4621.6,4621.5,8.417]
[1755181452129,0.108,4621.6,4621.5,3.663]
[1755181452332,0.108,4621.6,4621.5,5.0638]
[1755181452494,0.108,4622.4,4621.5,5.6379]
[1755181452699,0.108,4622.4,4622.0,2.16354727]
[1755181453002,2.16279442,4623.7,4622.1,6.86000797]
[1755181453200,0.108,4622.8,4622.1,0.1088]
[1755181453406,2.38172835,4624.2,4622.1,0.0008]
[1755181453407,0.108,4622.2,4622.1,0.0008]
[1755181453606,0.108,4622.2,4622.1,3.6628]
[1755181453818,0.4586,4623.2,4622.1,5.82631874]
[1755181454119,1.0425,4623.7,4622.1,3.6628]
[1755181454120,0.108,4622.5,4622.1,3.6628]
[1755181454492,0.55,4622.2,4622.1,0.0008]
[1755181454692,0.4586,4622.2,4622.1,0.0008]
[1755181454897,3.17207193,4622.2,4622.1,0.0008]
[1755181455093,3.82441803,4622.2,4622.1,0.0008]
[1755181455300,7.89396142,4622.2,4622.1,0.0008]
[1755181455495,2.71389327,4621.3,4621.2,3.662]
[1755181455700,0.55,4621.3,4621.2,3.662]
[1755181455930,0.658,4621.3,4621.2,3.662]
[1755181456237,2.16403123,4621.1,4620.2,2.16438636]
[1755181456420,0.108,4620.8,4620.4,2.16427513]
[1755181456752,0.4586,4622.6,4620.5,1.5006]
[1755181457035,0.108,4621.9,4621.1,2.16396446]
[1755181457236,0.108,4621.9,4621.2,0.108]
[1755181457436,0.108,4621.6,4621.3,3.662]
[1755181457635,0.108,4621.6,4621.4,3.662]
[1755181457836,0.108,4621.8,4621.4,5.82583779]
[1755181458039,0.108,4621.8,4621.7,2.16370599]
[1755181458341,0.002,4622.7,4621.7,1.6086]
[1755181458522,0.002,4622.7,4622.3,2.16341212]
[1755181458721,0.002,4622.7,4622.4,3.662]
[1755181459434,0.002,4622.7,4622.6,2.16328473]
[1755181459626,0.002,4622.7,4622.6,4.46275269]
[1755181459822,1e-08,4622.7,4622.6,7.46275269]
[1755181462065,1e-08,4622.7,4622.6,11.12375269]
[1755181462858,0.00120001,4623.7,4623.6,2.16281685]
[1755181463019,0.00120001,4623.7,4623.6,5.82381685]
[1755181463352,0.00120001,4623.7,4623.6,7.66158771]
[1755181463527,0.00120001,4623.7,4623.6,6.86371685]
[1755181463732,0.00120001,4623.7,4623.6,5.82461685]
[1755181463929,0.00120001,4623.7,4623.6,3.6618]
[1755181464128,0.43020001,4623.7,4623.6,0.0008]
[1755181464340,0.98020001,4623.7,4623.6,3.6608]
[1755181464541,4.14207008,4623.7,4623.6,3.6608]
[1755181464747,4.55627709,4623.7,4623.6,3.6608]
[1755181465045,7.55627709,4623.7,4623.6,0.0008]
[1755181465222,2.71286363,4623.5,4623.4,3.66]
[1755181465421,0.55,4623.1,4622.9,3.66]
[1755181465628,0.55,4622.9,4621.9,4.755]
[1755181465831,0.55,4622.9,4622.0,3.66]
[1755181466072,1.4281,4623.0,4622.0,3.66]
[1755181466355,0.55,4623.1,4622.0,3.66]
[1755181466533,0.02703871,4623.0,4621.9,4.755]
[1755181466728,2.16347341,4622.2,4622.0,3.659]
[1755181466967,0.55,4622.2,4622.1,3.659]
[1755181467463,3.14247193,4622.2,4622.1,3.659]
[1755181467621,0.55,4622.2,4622.1,3.659]
[1755181468622,3.14247193,4622.2,4622.1,3.659]
[1755181468821,0.55,4622.2,4622.1,3.659]
[1755181469530,3.0,4623.4,4622.1,3.659]
[1755181469724,0.108,4622.3,4622.1,3.659]
[1755181469946,0.537,4622.3,4622.2,3.659]
[1755181470146,0.108,4622.3,4622.2,3.659]
[1755181470349,0.55,4622.2,4621.7,3.659]
[1755181470556,2.61960371,4622.1,4621.7,3.659]
[1755181470758,0.108,4621.8,4621.7,3.659]
[1755181470958,2.82165918,4621.8,4621.7,3.659]
[1755181471284,1.087,4621.8,4621.7,3.659]
[1755181471564,3.25065918,4621.8,4621.7,3.659]
[1755181471875,1.087,4621.8,4621.7,3.659]
[1755181472557,0.658,4621.8,4621.7,3.659]
[1755181473155,0.108,4621.8,4621.7,3.659]
[1755181473550,0.108,4621.8,4620.8,0.108]
[1755181473756,0.108,4621.3,4620.9,5.8220443]
[1755181473979,0.108,4621.3,4620.9,3.658]
[1755181474374,0.108,4621.3,4620.9,5.82207678]
[1755181474530,0.108,4621.3,4621.0,2.16402816]
[1755181474866,0.108,4621.3,4620.8,0.0008]
[1755181475032,0.429,4621.3,4621.1,3.658]
[1755181475233,0.55,4621.5,4621.2,3.658]
[1755181475429,0.108,4621.3,4621.2,3.658]
[1755181475633,0.108,4621.3,4621.2,5.82190299]
[1755181476632,0.55,4622.2,4621.3,2.16385771]
[1755181476831,0.55,4622.2,4621.2,4.6971]
[1755181476832,0.108,4621.6,4621.2,2.16393401]
[1755181477263,0.108,4621.6,4621.0,0.001]
[1755181477264,0.108,4621.6,4621.3,5.82089267]
[1755181477561,0.108,4621.6,4621.3,3.657]
[1755181478131,0.108,4621.6,4621.3,5.82088408]
[1755181478330,0.108,4621.6,4621.3,3.657]
[1755181478977,0.108,4621.6,4621.0,0.001]
[1755181479180,2.16384645,4621.4,4621.1,3.657]
[1755181479353,0.02704866,4621.3,4621.1,3.657]
[1755181479546,0.55,4621.6,4621.1,3.657]
[1755181479749,0.429,4622.5,4621.1,3.657]
[1755181479947,0.108,4621.4,4621.2,2.16392305]
[1755181480147,0.108,4621.4,4621.1,4.6961]
[1755181480569,0.108,4621.4,4621.0,0.001]
[1755181480767,5.71398692,4621.1,4621.0,0.001]
[1755181480966,6.82108692,4621.1,4621.0,0.001]
[1755181481266,7.66417663,4621.1,4621.0,0.001]
[1755181481659,6.23607663,4621.1,4621.0,0.001]
[1755181481857,3.658,4621.1,4621.0,3.657]
[1755181482034,3.108,4621.1,4621.0,3.657]
[1755181482235,2.71357221,4622.0,4621.0,3.657]
[1755181482434,0.108,4621.3,4621.2,2.1639401]
[1755181482679,0.53197748,4622.8,4621.2,1.0391]
[1755181482995,0.108,4621.6,4621.3,2.16385148]
[1755181483163,0.108,4621.6,4621.4,2.16384541]
[1755181483368,0.15859264,4623.1,4621.8,2.16362735]
[1755181483568,0.15859264,4623.1,4621.9,3.655]
[1755181483569,0.108,4622.1,4621.9,3.655]
[1755181483774,0.429,4622.5,4621.8,3.655]
[1755181483941,0.108,4621.9,4621.8,3.655]
[1755181484307,0.108,4621.9,4621.8,3.6558]
[1755181484876,0.1072,4621.9,4621.8,3.6558]
[1755181485049,3.24981236,4621.9,4621.8,0.0008]
[1755181485378,7.81729196,4621.9,4621.8,0.0008]
[1755181485550,5.71398692,4621.1,4621.0,0.001]
[1755181485736,7.25008692,4621.1,4621.0,0.001]
[1755181486273,3.108,4621.1,4621.0,0.001]
[1755181486440,5.27198692,4621.1,4621.0,0.001]
[1755181487145,5.82198692,4621.1,4621.0,0.001]
[1755181487343,6.56655218,4621.1,4621.0,0.001]
[1755181487774,6.13755218,4621.1,4621.0,0.001]
[1755181488130,5.82198692,4621.1,4621.0,0.001]
[1755181488260,6.25098692,4621.1,4621.0,0.001]
[1755181489479,5.82198692,4621.1,4621.0,0.001]
[1755181489846,6.25098692,4621.1,4621.0,0.001]
[1755181490181,3.658,4621.1,4621.0,0.001]
[1755181490352,5.27198692,4621.1,4621.0,0.001]
[1755181490550,3.108,4621.1,4621.0,0.001]
[1755181490755,6.80523118,4621.1,4621.0,0.001]
[1755181490945,7.77728135,4621.1,4621.0,0.001]
[1755181491367,6.77818135,4621.1,4621.0,0.001]
[1755181491641,6.34918135,4621.1,4621.0,0.001]
[1755181492250,3.55,4621.1,4621.0,0.001]
[1755181492476,5.82198692,4621.1,4621.0,0.001]
[1755181492680,5.27198692,4621.1,4621.0,0.001]
[1755181492879,5.82198692,4621.1,4621.0,0.001]
[1755181494479,3.658,4621.1,4621.0,0.001]
[1755181494677,5.82198692,4621.1,4621.0,0.001]
[1755181496085,7.22858692,4621.1,4621.0,0.001]
[1755181496287,7.22858692,4621.1,4621.0,1e-08]
[1755181496783,10.88058692,4621.1,4621.0,1e-08]
[1755181497284,10.88058692,4621.1,4620.3,1e-08]
[1755181497285,5.71431477,4620.4,4620.3,1e-08]
[1755181497453,9.93031477,4620.4,4620.3,1e-08]
[1755181497652,5.71431477,4620.4,4620.3,1e-08]
[1755181497857,2.27231477,4620.4,4620.3,1e-08]
[1755181498156,0.108,4620.4,4620.3,0.97390001]
[1755181498458,2.27231477,4620.4,4620.3,1e-08]
[1755181499503,2.82231477,4620.4,4620.3,1e-08]
[1755181499708,6.32096937,4620.4,4620.3,1e-08]
[1755181499914,6.77696937,4620.4,4620.3,1e-08]
[1755181500265,10.42796937,4620.4,4620.3,1e-08]
[1755181500641,0.55,4620.0,4619.6,1e-08]
[1755181500910,5.82264272,4619.7,4619.6,1e-08]
[1755181501112,9.83188783,4619.7,4619.6,1e-08]
[1755181501405,6.18088783,4619.7,4619.6,1e-08]
[1755181501911,6.63688783,4619.7,4619.6,1e-08]
[1755181502377,6.18088783,4619.7,4619.6,1e-08]
[1755181502779,6.63688783,4619.7,4619.6,1e-08]
[1755181502998,11.23748783,4619.7,4619.6,1e-08]
[1755181505243,10.28688783,4619.7,4619.6,1e-08]
[1755181505533,9.83088783,4619.7,4619.6,1e-08]
[1755181505712,10.28688783,4619.7,4619.6,1e-08]
[1755181506412,6.63688783,4619.7,4619.6,1e-08]
[1755181506609,9.82988783,4619.7,4619.6,1e-08]
[1755181507203,5.27264272,4619.7,4619.6,1e-08]
[1755181507410,2.82264272,4619.7,4619.6,1e-08]
[1755181507826,2.71464272,4619.7,4619.6,1e-08]
[1755181508147,6.17064272,4619.7,4619.6,1e-08]
[1755181509253,5.71464272,4619.7,4619.6,1e-08]
[1755181509848,9.36364272,4619.7,4619.6,1e-08]
[1755181510605,9.81964272,4619.7,4619.6,1e-08]
[1755181510908,2.71525203,4618.4,4618.3,0.001]
[1755181511112,9.36325203,4618.4,4618.3,1e-08]
[1755181511347,9.36325203,4618.4,4617.6,0.001]
[1755181511348,0.55,4618.0,4617.6,0.001]
[1755181511645,5.71558026,4617.7,4617.6,0.001]
[1755181511812,9.81958026,4617.7,4617.6,0.001]
[1755181512231,10.77018026,4617.7,4617.6,1e-08]
[1755181512841,10.76938026,4617.7,4617.6,0.00080001]
[1755181513220,9.36278026,4617.7,4617.6,0.00080001]